[Event "Airthings Masters MCCT Prel 2022"]
[Site "Online"]
[Date "2022.02.13"]
[Round "15.1"]
[White "Praggnanandhaa R"]
[Black "Artemiev, Vladislav"]
[Result "1-0"]
[ECO "C55"]
[WhiteElo "2612"]
[BlackElo "2700"]
[Annotator "RC"]
[PlyCount "63"]
[EventDate "2022.02.18"]
[EventType "tourn"]
[EventCountry "NET"]
[SourceTitle "playchess.com"]
[Source "ChessBase"]
[SourceQuality "1"]
[TimeControl "900+10"]

1. e4 {[%emt 0:00:00]} e5 {[%emt 0:00:00]} 2. Nf3 {[%emt 0:00:03]} Nc6 {
[%emt 0:00:02]} 3. Bc4 {[%emt 0:00:01]} Nf6 {[%emt 0:00:02]} 4. d3 {[%emt 0:00:
01]} Be7 {[%emt 0:00:03]} 5. O-O {[%emt 0:00:01]} O-O {[%emt 0:00:02]} 6. Re1 {
[%emt 0:00:01]} d6 {[%emt 0:00:07]} 7. a4 {[%emt 0:00:02]} h6 {[%emt 0:01:10]}
8. a5 {[%emt 0:00:11]} a6 {[%emt 0:00:04]} 9. Nc3 {[%emt 0:00:03]} Re8 {
[%emt 0:00:42]} 10. h3 {[%emt 0:00:44]} Bf8 {[%emt 0:00:02]} 11. d4 {[%emt 0:
02:25]} exd4 {[%emt 0:00:41]} 12. Nxd4 {[%emt 0:00:03]} d5 {[%emt 0:01:22]} 13.
Nxd5 {[%emt 0:03:02]} Nxd5 {[%emt 0:00:06]} 14. Nxc6 {[%emt 0:00:06]} bxc6 {
[%emt 0:00:02]} 15. exd5 {[%emt 0:00:02]} Rxe1+ {[%emt 0:00:01]} 16. Qxe1 {
[%emt 0:00:01]} cxd5 {[%emt 0:00:00]} 17. Bf1 {[%emt 0:01:24]} c5 {[%emt 0:00:
55]} 18. Bf4 {[%emt 0:00:23]} Bb7 {[%emt 0:00:56]} 19. Qc3 {[%emt 0:01:03]} Bc6
{[%emt 0:01:05]} 20. Rd1 {[%emt 0:01:41]} Bb5 {[%emt 0:02:39]} 21. Bxb5 {
[%emt 0:01:21]} axb5 {[%emt 0:00:01]} 22. Qe5 {[%emt 0:00:11]} Qxa5 {[%emt 0:
01:29]} 23. Rxd5 {[%emt 0:00:11]} Qa2 {[%emt 0:01:29]} 24. Rd7 {[%emt 0:01:26]}
g6 {[%emt 0:05:07]} 25. Qe4 {[%emt 0:02:07]} Bg7 {[%emt 0:00:52]} 26. b3 {
[%emt 0:00:15]} Rf8 {[%emt 0:00:14]} 27. Bd6 {[%emt 0:00:25]} Qa8 {[%emt 0:00:
03]} 28. Qf4 {[%emt 0:01:15]} Qe8 {[%emt 0:00:22]} 29. Re7 {[%emt 0:00:10]} Qa8
{[%emt 0:00:12]} 30. Rc7 {[%emt 0:00:17]} Qd8 {[%emt 0:00:10]} 31. Bxf8 {
[%emt 0:00:12]} Qxf8 {[%emt 0:00:11]} 32. Rb7 {[%emt 0:00:07]} 1-0

[Event "Airthings Masters MCCT Prel 2022"]
[Site "Online"]
[Date "2022.02.13"]
[Round "15.2"]
[White "Le, Quang Liem"]
[Black "Niemann, Hans Moke"]
[Result "1/2-1/2"]
[ECO "D38"]
[WhiteElo "2709"]
[BlackElo "2642"]
[Annotator "RC"]
[PlyCount "178"]
[EventDate "2022.02.18"]
[EventType "tourn"]
[EventCountry "NET"]
[SourceTitle "playchess.com"]
[Source "ChessBase"]
[SourceQuality "1"]
[TimeControl "900+10"]

1. d4 {[%emt 0:00:00]} Nf6 {[%emt 0:00:00]} 2. c4 {[%emt 0:00:02]} e6 {[%emt 0:
00:02]} 3. Nf3 {[%emt 0:00:01]} d5 {[%emt 0:00:01]} 4. Nc3 {[%emt 0:00:01]} Bb4
{[%emt 0:00:08]} 5. Qa4+ {[%emt 0:00:02]} Nc6 {[%emt 0:00:02]} 6. a3 {[%emt 0:
00:00]} Bxc3+ {[%emt 0:00:04]} 7. bxc3 {[%emt 0:00:00]} Ne4 {[%emt 0:00:13]} 8.
e3 {[%emt 0:00:02]} Nxc3 {[%emt 0:00:02]} 9. Qc2 {[%emt 0:00:01]} Ne4 {[%emt 0:
00:01]} 10. Bd3 {[%emt 0:00:01]} Nd6 {[%emt 0:00:02]} 11. Nd2 {[%emt 0:00:08]}
dxc4 {[%emt 0:01:12]} 12. Nxc4 {[%emt 0:00:00]} Nxc4 {[%emt 0:00:02]} 13. Bxc4
{[%emt 0:00:11]} e5 {[%emt 0:00:05]} 14. d5 {[%emt 0:00:43]} Ne7 {[%emt 0:00:
06]} 15. O-O {[%emt 0:00:10]} O-O {[%emt 0:00:21]} 16. a4 {[%emt 0:01:15]} c6 {
[%emt 0:00:40]} 17. dxc6 {[%emt 0:00:47]} Nxc6 {[%emt 0:00:02]} 18. Ba3 {
[%emt 0:00:06]} Re8 {[%emt 0:00:03]} 19. Rfd1 {[%emt 0:00:05]} Qf6 {[%emt 0:00:
27]} 20. Qb2 {[%emt 0:02:37]} Be6 {[%emt 0:00:49]} 21. Bxe6 {[%emt 0:00:12]}
Qxe6 {[%emt 0:00:03]} 22. Qxb7 {[%emt 0:00:02]} Rab8 {[%emt 0:01:17]} 23. Qa6 {
[%emt 0:00:14]} Qc8 {[%emt 0:00:02]} 24. Qe2 {[%emt 0:00:36]} Rd8 {[%emt 0:00:
25]} 25. h3 {[%emt 0:00:53]} h6 {[%emt 0:00:08]} 26. Rac1 {[%emt 0:01:47]} Qb7
{[%emt 0:00:06]} 27. Bd6 {[%emt 0:00:20]} Nd4 {[%emt 0:00:33]} 28. exd4 {
[%emt 0:00:14]} Rxd6 {[%emt 0:00:03]} 29. Qxe5 {[%emt 0:00:50]} Rbd8 {[%emt 0:
00:07]} 30. Rc3 {[%emt 0:00:59]} Rd5 {[%emt 0:00:23]} 31. Qf4 {[%emt 0:00:07]}
Qb4 {[%emt 0:00:09]} 32. Rc7 {[%emt 0:00:40]} R5d7 {[%emt 0:00:28]} 33. Rdc1 {
[%emt 0:02:36]} Qxa4 {[%emt 0:03:29]} 34. Rxd7 {[%emt 0:00:02]} Qxd7 {[%emt 0:
00:03]} 35. Rc7 {[%emt 0:00:02]} Qxd4 {[%emt 0:00:03]} 36. Qxf7+ {[%emt 0:00:
02]} Kh8 {[%emt 0:00:01]} 37. Rxa7 {[%emt 0:00:08]} Qd1+ {[%emt 0:00:03]} 38.
Kh2 {[%emt 0:00:02]} Qd6+ {[%emt 0:00:01]} 39. g3 {[%emt 0:00:06]} Qf8 {
[%emt 0:00:06]} 40. Qa2 {[%emt 0:00:42]} Qf6 {[%emt 0:00:08]} 41. Rf7 {[%emt 0:
00:10]} Qd6 {[%emt 0:00:11]} 42. Qb2 {[%emt 0:00:19]} Qg6 {[%emt 0:00:16]} 43.
Rf4 {[%emt 0:00:08]} Qe6 {[%emt 0:00:10]} 44. Qb7 {[%emt 0:00:18]} Qe1 {
[%emt 0:00:27]} 45. Qf3 {[%emt 0:00:33]} Qe7 {[%emt 0:00:09]} 46. h4 {[%emt 0:
00:07]} Qe6 {[%emt 0:00:12]} 47. h5 {[%emt 0:00:23]} Kg8 {[%emt 0:00:03]} 48.
Rf5 {[%emt 0:00:07]} Re8 {[%emt 0:00:14]} 49. Qg4 {[%emt 0:00:23]} Kh7 {
[%emt 0:00:14]} 50. Kh3 {[%emt 0:00:36]} Qc6 {[%emt 0:00:12]} 51. f3 {[%emt 0:
00:25]} Qe6 {[%emt 0:01:18]} 52. Ra5 {[%emt 0:01:04]} Qxg4+ {[%emt 0:00:05]}
53. Kxg4 {[%emt 0:00:00]} Rb8 {[%emt 0:00:07]} 54. f4 {[%emt 0:00:14]} Rb3 {
[%emt 0:00:04]} 55. Ra8 {[%emt 0:00:03]} Rc3 {[%emt 0:00:05]} 56. Kh4 {[%emt 0:
00:06]} Rc4 {[%emt 0:00:15]} 57. Rf8 {[%emt 0:00:03]} Rb4 {[%emt 0:00:07]} 58.
Re8 {[%emt 0:00:29]} Ra4 {[%emt 0:00:06]} 59. Rf8 {[%emt 0:00:21]} Rb4 {
[%emt 0:00:03]} 60. g4 {[%emt 0:00:01]} Ra4 {[%emt 0:00:02]} 61. Kg3 {[%emt 0:
00:06]} Ra3+ {[%emt 0:00:02]} 62. Kf2 {[%emt 0:00:02]} Ra2+ {[%emt 0:00:01]}
63. Kg3 {[%emt 0:00:07]} Ra3+ {[%emt 0:00:01]} 64. Kh4 {[%emt 0:00:01]} Ra4 {
[%emt 0:00:01]} 65. f5 {[%emt 0:01:10]} Ra6 {[%emt 0:00:07]} 66. Rc8 {[%emt 0:
00:13]} Ra3 {[%emt 0:00:12]} 67. Rc4 {[%emt 0:00:05]} Rb3 {[%emt 0:00:04]} 68.
Rc7 {[%emt 0:00:36]} Kg8 {[%emt 0:00:04]} 69. Rc6 {[%emt 0:00:05]} Kh7 {
[%emt 0:00:05]} 70. Rc7 {[%emt 0:00:11]} Kg8 {[%emt 0:00:04]} 71. Rc4 {[%emt 0:
00:00]} Kh7 {[%emt 0:00:04]} 72. g5 {[%emt 0:00:02]} hxg5+ {[%emt 0:00:02]} 73.
Kxg5 {[%emt 0:00:00]} Rg3+ {[%emt 0:00:08]} 74. Rg4 {[%emt 0:00:13]} Ra3 {
[%emt 0:00:07]} 75. Rb4 {[%emt 0:00:28]} Rg3+ {[%emt 0:00:02]} 76. Kf4 {
[%emt 0:00:06]} Rg1 {[%emt 0:00:01]} 77. Rb8 {[%emt 0:00:37]} Rf1+ {[%emt 0:00:
03]} 78. Ke5 {[%emt 0:00:04]} Re1+ {[%emt 0:00:01]} 79. Kd6 {[%emt 0:00:11]}
Kh6 {[%emt 0:00:08]} 80. Rg8 {[%emt 0:00:07]} Re2 {[%emt 0:00:27]} 81. Kd5 {
[%emt 0:00:17]} Re1 {[%emt 0:00:05]} 82. Kd4 {[%emt 0:00:18]} Re7 {[%emt 0:00:
11]} 83. f6 {[%emt 0:00:16]} gxf6 {[%emt 0:00:04]} 84. Rg6+ {[%emt 0:00:01]}
Kxh5 {[%emt 0:00:01]} 85. Rxf6 {[%emt 0:00:01]} Kg5 {[%emt 0:00:01]} 86. Rd6 {
[%emt 0:00:01]} Kf5 {[%emt 0:00:02]} 87. Rd5+ {[%emt 0:00:02]} Ke6 {[%emt 0:00:
01]} 88. Re5+ {[%emt 0:00:01]} Kf6 {[%emt 0:00:00]} 89. Rxe7 {[%emt 0:00:02]}
Kxe7 {[%emt 0:00:00]} 1/2-1/2

[Event "Airthings Masters MCCT Prel 2022"]
[Site "Online"]
[Date "2022.02.13"]
[Round "15.3"]
[White "Hansen, Eric"]
[Black "Keymer, Vincent"]
[Result "1/2-1/2"]
[ECO "B51"]
[WhiteElo "2606"]
[BlackElo "2664"]
[Annotator "ChessBase"]
[PlyCount "123"]
[EventDate "2022.02.18"]
[EventType "tourn"]
[EventCountry "NET"]
[SourceTitle "playchess.com"]
[Source "ChessBase"]
[SourceQuality "1"]
[TimeControl "900+10"]

1. e4 {[%emt 0:00:00]} c5 {[%emt 0:00:00]} 2. Nf3 {[%emt 0:00:03]} d6 {[%emt 0:
00:01]} 3. Bb5+ {[%emt 0:00:01]} Nd7 {[%emt 0:00:02]} 4. c3 {[%emt 0:00:46]}
Ngf6 {[%emt 0:00:03]} 5. Bd3 {[%emt 0:00:02]} a6 {[%emt 0:00:23]} 6. Bc2 {
[%emt 0:00:11]} b5 {[%emt 0:00:01]} 7. d4 {[%emt 0:00:09]} Bb7 {[%emt 0:00:02]}
8. Nbd2 {[%emt 0:00:01]} e6 {[%emt 0:00:26]} 9. O-O {[%emt 0:00:01]} Be7 {
[%emt 0:00:33]} 10. Re1 {[%emt 0:00:08]} Qc7 {[%emt 0:00:45]} 11. Nf1 {[%emt 0:
00:09]} O-O {[%emt 0:00:07]} 12. Ng3 {[%emt 0:00:02]} Rfc8 {[%emt 0:00:37]} 13.
Bd3 {[%emt 0:00:02]} b4 {[%emt 0:02:16]} 14. cxb4 {[%emt 0:01:23]} cxb4 {
[%emt 0:00:19]} 15. Bd2 {[%emt 0:00:02]} a5 {[%emt 0:00:06]} 16. a3 {[%emt 0:
00:03]} bxa3 {[%emt 0:01:34]} 17. Rxa3 {[%emt 0:00:02]} Qd8 {[%emt 0:00:06]}
18. Qa1 {[%emt 0:03:45]} d5 {[%emt 0:00:06]} 19. Rxa5 {[%emt 0:00:01]} dxe4 {
[%emt 0:00:58]} 20. Nxe4 {[%emt 0:00:02]} Nxe4 {[%emt 0:00:02]} 21. Bxe4 {
[%emt 0:00:01]} Bxe4 {[%emt 0:00:00]} 22. Rxe4 {[%emt 0:00:02]} Rxa5 {[%emt 0:
02:14]} 23. Qxa5 {[%emt 0:00:06]} Qxa5 {[%emt 0:00:03]} 24. Bxa5 {[%emt 0:00:
01]} Rc2 {[%emt 0:00:01]} 25. Bc3 {[%emt 0:00:21]} Nf6 {[%emt 0:00:36]} 26. Re1
{[%emt 0:00:03]} Nd5 {[%emt 0:00:06]} 27. Rb1 {[%emt 0:00:44]} g5 {[%emt 0:00:
47]} 28. Kf1 {[%emt 0:02:12]} g4 {[%emt 0:00:35]} 29. Ne1 {[%emt 0:00:54]} Nxc3
{[%emt 0:00:03]} 30. bxc3 {[%emt 0:00:00]} Rxc3 {[%emt 0:00:00]} 31. Rd1 {
[%emt 0:00:02]} Bd6 {[%emt 0:00:39]} 32. g3 {[%emt 0:02:06]} Kg7 {[%emt 0:02:
02]} 33. Ng2 {[%emt 0:00:13]} f5 {[%emt 0:01:08]} 34. Ne3 {[%emt 0:00:40]} Kf6
{[%emt 0:00:06]} 35. Ke2 {[%emt 0:00:09]} h5 {[%emt 0:01:06]} 36. h3 {[%emt 0:
02:59]} gxh3 {[%emt 0:01:50]} 37. Rh1 {[%emt 0:00:02]} h4 {[%emt 0:00:00]} 38.
Rxh3 {[%emt 0:02:45]} hxg3 {[%emt 0:00:03]} 39. Rh6+ {[%emt 0:00:34]} Kf7 {
[%emt 0:00:35]} 40. fxg3 {[%emt 0:00:24]} Bxg3 {[%emt 0:01:00]} 41. d5 {
[%emt 0:00:04]} exd5 {[%emt 0:00:18]} 42. Nxd5 {[%emt 0:00:05]} Rc2+ {[%emt 0:
00:12]} 43. Kf3 {[%emt 0:00:21]} Be5 {[%emt 0:00:04]} 44. Ra6 {[%emt 0:00:20]}
Rc5 {[%emt 0:00:15]} 45. Ra7+ {[%emt 0:00:05]} Kg6 {[%emt 0:00:07]} 46. Nf4+ {
[%emt 0:00:04]} Kf6 {[%emt 0:00:19]} 47. Ra6+ {[%emt 0:00:07]} Kf7 {[%emt 0:00:
01]} 48. Ra7+ {[%emt 0:00:02]} Kf6 {[%emt 0:00:05]} 49. Ra6+ {[%emt 0:00:01]}
Kf7 {[%emt 0:00:01]} 50. Ra7+ {[%emt 0:00:00]} Bc7 {[%emt 0:00:07]} 51. Nd5 {
[%emt 0:00:12]} Rxd5 {[%emt 0:00:02]} 52. Rxc7+ {[%emt 0:00:01]} Kf6 {[%emt 0:
00:00]} 53. Rc8 {[%emt 0:00:06]} Rd3+ {[%emt 0:00:03]} 54. Kf4 {[%emt 0:00:03]}
Rd4+ {[%emt 0:00:01]} 55. Kf3 {[%emt 0:00:01]} Ra4 {[%emt 0:00:01]} 56. Rf8+ {
[%emt 0:00:07]} Ke5 {[%emt 0:00:05]} 57. Re8+ {[%emt 0:00:01]} Kf6 {[%emt 0:00:
02]} 58. Rf8+ {[%emt 0:00:01]} Kg6 {[%emt 0:00:00]} 59. Rg8+ {[%emt 0:00:02]}
Kf7 {[%emt 0:00:01]} 60. Rb8 {[%emt 0:00:01]} Rc4 {[%emt 0:00:03]} 61. Rb6 {
[%emt 0:00:04]} Ra4 {[%emt 0:00:06]} 62. Rc6 {[%emt 0:00:01]} 1/2-1/2

[Event "Airthings Masters MCCT Prel 2022"]
[Site "Online"]
[Date "2022.02.13"]
[Round "15.4"]
[White "Ding, Liren"]
[Black "Kosteniuk, Alexandra"]
[Result "1-0"]
[ECO "A34"]
[WhiteElo "2799"]
[BlackElo "2516"]
[Annotator "RC"]
[PlyCount "63"]
[EventDate "2022.02.18"]
[EventType "tourn"]
[EventCountry "NET"]
[SourceTitle "playchess.com"]
[Source "ChessBase"]
[SourceQuality "1"]
[TimeControl "900+10"]

1. c4 {[%emt 0:00:00]} c5 {[%emt 0:00:00]} 2. g3 {[%emt 0:00:03]} Nf6 {[%emt 0:
00:03]} 3. Bg2 {[%emt 0:00:02]} d5 {[%emt 0:00:02]} 4. cxd5 {[%emt 0:00:01]}
Nxd5 {[%emt 0:00:01]} 5. Nc3 {[%emt 0:00:00]} Nc7 {[%emt 0:00:02]} 6. Nf3 {
[%emt 0:00:21]} Nc6 {[%emt 0:00:10]} 7. a3 {[%emt 0:00:01]} Rb8 {[%emt 0:00:59]
} 8. b4 {[%emt 0:00:46]} e6 {[%emt 0:01:38]} 9. bxc5 {[%emt 0:02:15]} Bxc5 {
[%emt 0:00:05]} 10. Bb2 {[%emt 0:00:52]} O-O {[%emt 0:00:05]} 11. O-O {[%emt 0:
00:22]} b6 {[%emt 0:02:05]} 12. Rc1 {[%emt 0:00:27]} Bb7 {[%emt 0:00:10]} 13.
Ne4 {[%emt 0:00:06]} Be7 {[%emt 0:00:05]} 14. d3 {[%emt 0:00:24]} Nd5 {[%emt 0:
00:13]} 15. Rc2 {[%emt 0:00:26]} f5 {[%emt 0:02:36]} 16. Ned2 {[%emt 0:00:06]}
Rc8 {[%emt 0:01:32]} 17. Qa1 {[%emt 0:00:59]} Bf6 {[%emt 0:00:29]} 18. Rfc1 {
[%emt 0:00:01]} Bxb2 {[%emt 0:00:20]} 19. Qxb2 {[%emt 0:00:01]} Qf6 {[%emt 0:
00:11]} 20. d4 {[%emt 0:00:25]} Na5 {[%emt 0:01:57]} 21. Ne5 {[%emt 0:00:09]}
Qe7 {[%emt 0:00:09]} 22. Bxd5 {[%emt 0:00:34]} Rxc2 {[%emt 0:00:40]} 23. Bxe6+
{[%emt 0:00:14]} Qxe6 {[%emt 0:00:01]} 24. Rxc2 {[%emt 0:00:00]} Qd5 {[%emt 0:
00:05]} 25. f3 {[%emt 0:00:11]} f4 {[%emt 0:00:20]} 26. Rc7 {[%emt 0:01:55]}
Rd8 {[%emt 0:01:35]} 27. gxf4 {[%emt 0:00:26]} Qd6 {[%emt 0:00:33]} 28. Qa2+ {
[%emt 0:01:00]} Bd5 {[%emt 0:00:01]} 29. Qc2 {[%emt 0:00:01]} Be6 {[%emt 0:00:
00]} 30. Ne4 {[%emt 0:00:54]} Qxd4+ {[%emt 0:00:07]} 31. Kg2 {[%emt 0:00:01]}
Bb3 {[%emt 0:02:32]} 32. Nf6+ {[%emt 0:00:07]} 1-0

[Event "Airthings Masters MCCT Prel 2022"]
[Site "Online"]
[Date "2022.02.13"]
[Round "15.5"]
[White "Duda, Jan-Krzysztof"]
[Black "Nepomniachtchi, Ian"]
[Result "1/2-1/2"]
[ECO "C65"]
[WhiteElo "2760"]
[BlackElo "2773"]
[Annotator "RC"]
[PlyCount "144"]
[EventDate "2022.02.18"]
[EventType "tourn"]
[EventCountry "NET"]
[SourceTitle "playchess.com"]
[Source "ChessBase"]
[SourceQuality "1"]
[TimeControl "900+10"]

1. e4 {[%emt 0:00:00]} e5 {[%emt 0:00:00]} 2. Nf3 {[%emt 0:00:04]} Nc6 {
[%emt 0:00:01]} 3. Bb5 {[%emt 0:00:05]} Nf6 {[%emt 0:00:01]} 4. d3 {[%emt 0:00:
01]} Bc5 {[%emt 0:00:02]} 5. c3 {[%emt 0:00:20]} d5 {[%emt 0:00:03]} 6. exd5 {
[%emt 0:00:05]} Qxd5 {[%emt 0:00:00]} 7. Bc4 {[%emt 0:00:04]} Qd6 {[%emt 0:00:
02]} 8. O-O {[%emt 0:00:03]} O-O {[%emt 0:00:06]} 9. Nbd2 {[%emt 0:00:31]} Bf5
{[%emt 0:00:06]} 10. b4 {[%emt 0:00:50]} Bb6 {[%emt 0:00:03]} 11. Qe2 {[%emt 0:
00:20]} Rad8 {[%emt 0:00:37]} 12. a4 {[%emt 0:00:17]} a6 {[%emt 0:00:11]} 13.
Ne4 {[%emt 0:00:56]} Nxe4 {[%emt 0:00:03]} 14. dxe4 {[%emt 0:00:00]} Bg4 {
[%emt 0:00:25]} 15. h3 {[%emt 0:03:59]} Be6 {[%emt 0:00:02]} 16. Ba3 {[%emt 0:
01:08]} Bxc4 {[%emt 0:00:11]} 17. Qxc4 {[%emt 0:00:00]} Rfe8 {[%emt 0:00:01]}
18. a5 {[%emt 0:02:10]} Ba7 {[%emt 0:00:03]} 19. b5 {[%emt 0:00:10]} axb5 {
[%emt 0:00:19]} 20. Bxd6 {[%emt 0:00:21]} bxc4 {[%emt 0:00:01]} 21. Bxc7 {
[%emt 0:00:00]} Rd7 {[%emt 0:00:16]} 22. Bb6 {[%emt 0:00:02]} Bxb6 {[%emt 0:00:
04]} 23. axb6 {[%emt 0:00:00]} Rd3 {[%emt 0:00:02]} 24. Rfc1 {[%emt 0:00:06]}
f6 {[%emt 0:00:08]} 25. Ne1 {[%emt 0:00:11]} Rd2 {[%emt 0:00:02]} 26. Nc2 {
[%emt 0:00:14]} Rc8 {[%emt 0:00:03]} 27. Ne3 {[%emt 0:00:07]} Ne7 {[%emt 0:00:
10]} 28. Ra7 {[%emt 0:00:49]} Rd7 {[%emt 0:00:01]} 29. Ra4 {[%emt 0:00:54]} Rd6
{[%emt 0:01:17]} 30. Rb4 {[%emt 0:00:15]} Rc5 {[%emt 0:00:03]} 31. Ra1 {
[%emt 0:00:38]} Nc8 {[%emt 0:01:46]} 32. Ra8 {[%emt 0:00:49]} Kf7 {[%emt 0:00:
03]} 33. Rb8 {[%emt 0:00:04]} Nxb6 {[%emt 0:00:21]} 34. Rxb7+ {[%emt 0:00:03]}
Nd7 {[%emt 0:00:01]} 35. Rxc4 {[%emt 0:00:17]} Rxc4 {[%emt 0:00:02]} 36. Nxc4 {
[%emt 0:00:00]} Rd1+ {[%emt 0:00:02]} 37. Kh2 {[%emt 0:00:01]} Ke6 {[%emt 0:00:
02]} 38. Rc7 {[%emt 0:00:03]} Rc1 {[%emt 0:01:27]} 39. Rc6+ {[%emt 0:00:10]}
Kf7 {[%emt 0:00:13]} 40. Nd6+ {[%emt 0:00:15]} Ke7 {[%emt 0:00:13]} 41. Nf5+ {
[%emt 0:00:01]} Kf7 {[%emt 0:00:01]} 42. f3 {[%emt 0:00:24]} Rd1 {[%emt 0:00:
34]} 43. Ne3 {[%emt 0:00:12]} Rd2 {[%emt 0:00:22]} 44. Nd5 {[%emt 0:00:06]} f5
{[%emt 0:00:10]} 45. Rc7 {[%emt 0:00:17]} Ke8 {[%emt 0:00:14]} 46. Rc8+ {
[%emt 0:00:26]} Kf7 {[%emt 0:00:02]} 47. Rc7 {[%emt 0:00:00]} Ke8 {[%emt 0:00:
01]} 48. c4 {[%emt 0:00:03]} fxe4 {[%emt 0:00:03]} 49. fxe4 {[%emt 0:00:00]}
Rc2 {[%emt 0:00:25]} 50. Kg3 {[%emt 0:00:26]} h6 {[%emt 0:00:03]} 51. Kf3 {
[%emt 0:00:30]} Kd8 {[%emt 0:00:56]} 52. Rc6 {[%emt 0:00:22]} Ke8 {[%emt 0:00:
03]} 53. h4 {[%emt 0:00:16]} h5 {[%emt 0:00:07]} 54. g4 {[%emt 0:00:12]} hxg4+
{[%emt 0:00:02]} 55. Kxg4 {[%emt 0:00:00]} Kf7 {[%emt 0:00:02]} 56. Kf3 {
[%emt 0:00:40]} Rc1 {[%emt 0:00:03]} 57. Ne3 {[%emt 0:00:29]} Rh1 {[%emt 0:00:
29]} 58. Rc7 {[%emt 0:02:22]} Ke6 {[%emt 0:00:02]} 59. c5 {[%emt 0:00:42]} Rxh4
{[%emt 0:00:21]} 60. Nf5 {[%emt 0:00:14]} Rh3+ {[%emt 0:01:20]} 61. Ke2 {
[%emt 0:00:18]} Nf8 {[%emt 0:00:30]} 62. c6 {[%emt 0:00:53]} Kf6 {[%emt 0:00:
24]} 63. Nxg7 {[%emt 0:00:11]} Rc3 {[%emt 0:00:05]} 64. Kd2 {[%emt 0:00:03]}
Rc5 {[%emt 0:00:12]} 65. Ne8+ {[%emt 0:00:18]} Ke6 {[%emt 0:00:21]} 66. Ng7+ {
[%emt 0:00:01]} Kf6 {[%emt 0:00:01]} 67. Ne8+ {[%emt 0:00:00]} Ke6 {[%emt 0:00:
01]} 68. Rc8 {[%emt 0:00:02]} Ke7 {[%emt 0:00:09]} 69. Nc7 {[%emt 0:00:13]} Kd6
{[%emt 0:00:26]} 70. Ne8+ {[%emt 0:00:24]} Ke7 {[%emt 0:00:02]} 71. Nc7 {
[%emt 0:00:17]} Kd6 {[%emt 0:00:02]} 72. Ne8+ {[%emt 0:00:11]} Ke7 {[%emt 0:00:
01]} 1/2-1/2

[Event "Airthings Masters MCCT Prel 2022"]
[Site "Online"]
[Date "2022.02.13"]
[Round "15.6"]
[White "Aronian, Levon"]
[Black "Esipenko, Andrey"]
[Result "0-1"]
[ECO "C54"]
[WhiteElo "2772"]
[BlackElo "2714"]
[Annotator "RC"]
[PlyCount "40"]
[EventDate "2022.02.18"]
[EventType "tourn"]
[EventCountry "NET"]
[SourceTitle "playchess.com"]
[Source "ChessBase"]
[SourceQuality "1"]
[TimeControl "900+10"]

1. e4 {[%emt 0:00:00]} e5 {[%emt 0:00:00]} 2. Nf3 {[%emt 0:00:02]} Nc6 {
[%emt 0:00:02]} 3. Bc4 {[%emt 0:00:02]} Bc5 {[%emt 0:00:03]} 4. d3 {[%emt 0:00:
05]} Nf6 {[%emt 0:00:07]} 5. O-O {[%emt 0:00:02]} O-O {[%emt 0:00:09]} 6. Re1 {
[%emt 0:00:02]} h6 {[%emt 0:00:29]} 7. c3 {[%emt 0:00:07]} d6 {[%emt 0:00:07]}
8. Nbd2 {[%emt 0:00:16]} Bb6 {[%emt 0:00:09]} 9. Bb3 {[%emt 0:00:27]} Ng4 {
[%emt 0:00:55]} 10. Re2 {[%emt 0:00:10]} Na5 {[%emt 0:00:01]} 11. Bc2 {[%emt 0:
02:47]} f5 {[%emt 0:00:21]} 12. h3 {[%emt 0:01:11]} Nf6 {[%emt 0:02:23]} 13. d4
{[%emt 0:02:04]} fxe4 {[%emt 0:00:19]} 14. Nxe4 {[%emt 0:00:03]} Nxe4 {[%emt 0:
00:05]} 15. Rxe4 {[%emt 0:00:02]} Bf5 {[%emt 0:00:11]} 16. Re1 {[%emt 0:01:22]}
Bxc2 {[%emt 0:00:46]} 17. Qxc2 {[%emt 0:00:02]} exd4 {[%emt 0:01:48]} 18. Bxh6
{[%emt 0:00:34]} Rxf3 {[%emt 0:01:08]} 19. gxf3 {[%emt 0:00:01]} Qh4 {[%emt 0:
00:08]} 20. Bc1 {[%emt 0:01:08]} d3 {[%emt 0:00:42]} 0-1

[Event "Airthings Masters MCCT Prel 2022"]
[Site "Online"]
[Date "2022.02.13"]
[Round "15.7"]
[White "Mamedyarov, Shakhriyar"]
[Black "Abdusattorov, Nodirbek"]
[Result "1-0"]
[ECO "E68"]
[WhiteElo "2767"]
[BlackElo "2651"]
[Annotator "RC"]
[PlyCount "115"]
[EventDate "2022.02.18"]
[EventType "tourn"]
[EventCountry "NET"]
[SourceTitle "playchess.com"]
[Source "ChessBase"]
[SourceQuality "1"]
[TimeControl "900+10"]

1. d4 {[%emt 0:00:00]} Nf6 {[%emt 0:00:00]} 2. c4 {[%emt 0:00:02]} g6 {[%emt 0:
00:02]} 3. g3 {[%emt 0:00:07]} Bg7 {[%emt 0:00:07]} 4. Bg2 {[%emt 0:00:02]} O-O
{[%emt 0:00:01]} 5. Nc3 {[%emt 0:00:02]} d6 {[%emt 0:00:02]} 6. Nf3 {[%emt 0:
00:01]} Nbd7 {[%emt 0:00:01]} 7. O-O {[%emt 0:00:01]} e5 {[%emt 0:00:01]} 8. e4
{[%emt 0:00:01]} exd4 {[%emt 0:00:01]} 9. Nxd4 {[%emt 0:00:00]} Nc5 {[%emt 0:
00:03]} 10. f3 {[%emt 0:00:07]} Nfd7 {[%emt 0:00:10]} 11. Be3 {[%emt 0:00:10]}
Ne5 {[%emt 0:00:18]} 12. b3 {[%emt 0:00:01]} c6 {[%emt 0:00:04]} 13. Qc2 {
[%emt 0:00:30]} a5 {[%emt 0:00:49]} 14. Rad1 {[%emt 0:00:03]} Qe7 {[%emt 0:00:
53]} 15. f4 {[%emt 0:01:50]} Ng4 {[%emt 0:00:53]} 16. Bc1 {[%emt 0:00:02]} a4 {
[%emt 0:02:00]} 17. h3 {[%emt 0:02:47]} axb3 {[%emt 0:00:05]} 18. axb3 {
[%emt 0:00:00]} Nf6 {[%emt 0:00:08]} 19. Kh2 {[%emt 0:00:02]} Re8 {[%emt 0:01:
19]} 20. Rfe1 {[%emt 0:00:13]} Qc7 {[%emt 0:00:24]} 21. b4 {[%emt 0:00:25]} Ne6
{[%emt 0:00:14]} 22. Nf3 {[%emt 0:01:19]} Qb6 {[%emt 0:01:12]} 23. b5 {[%emt 0:
00:02]} Qc5 {[%emt 0:02:00]} 24. e5 {[%emt 0:00:51]} dxe5 {[%emt 0:00:02]} 25.
Nxe5 {[%emt 0:00:04]} cxb5 {[%emt 0:02:09]} 26. Nxb5 {[%emt 0:00:07]} Ra6 {
[%emt 0:00:00]} 27. Be3 {[%emt 0:02:18]} Qb4 {[%emt 0:00:06]} 28. Rb1 {[%emt 0:
00:10]} Qa5 {[%emt 0:01:18]} 29. c5 {[%emt 0:00:35]} Bf8 {[%emt 0:00:01]} 30.
Nc4 {[%emt 0:00:26]} Qa2 {[%emt 0:00:03]} 31. Rb2 {[%emt 0:00:07]} Qa4 {
[%emt 0:00:06]} 32. Qxa4 {[%emt 0:00:04]} Rxa4 {[%emt 0:00:00]} 33. Ncd6 {
[%emt 0:00:03]} Rd8 {[%emt 0:00:09]} 34. Nxc8 {[%emt 0:00:13]} Rxc8 {[%emt 0:
00:00]} 35. Bxb7 {[%emt 0:00:11]} Rxc5 {[%emt 0:00:15]} 36. Bxc5 {[%emt 0:00:
10]} Nxc5 {[%emt 0:00:06]} 37. Nc3 {[%emt 0:00:38]} Rc4 {[%emt 0:00:30]} 38.
Nd5 {[%emt 0:00:20]} Bg7 {[%emt 0:00:09]} 39. Ne7+ {[%emt 0:00:28]} Kf8 {
[%emt 0:01:05]} 40. Bd5 {[%emt 0:00:05]} Re4 {[%emt 0:00:55]} 41. Bxe4 {
[%emt 0:00:20]} Nfxe4 {[%emt 0:00:00]} 42. Rc2 {[%emt 0:00:11]} Bd4 {[%emt 0:
00:05]} 43. Nd5 {[%emt 0:01:54]} Bf2 {[%emt 0:00:06]} 44. Rxe4 {[%emt 0:00:13]}
Nxe4 {[%emt 0:00:02]} 45. Kg2 {[%emt 0:00:01]} Ba7 {[%emt 0:01:23]} 46. Rc7 {
[%emt 0:01:44]} Bc5 {[%emt 0:00:05]} 47. Kf3 {[%emt 0:00:09]} Nd2+ {[%emt 0:00:
04]} 48. Ke2 {[%emt 0:00:03]} Ne4 {[%emt 0:00:18]} 49. Kd3 {[%emt 0:00:04]}
Nf2+ {[%emt 0:00:01]} 50. Kc4 {[%emt 0:00:05]} Ba3 {[%emt 0:00:01]} 51. Ra7 {
[%emt 0:00:08]} Bd6 {[%emt 0:01:03]} 52. Ra6 {[%emt 0:00:20]} Ne4 {[%emt 0:00:
01]} 53. g4 {[%emt 0:00:33]} Bc5 {[%emt 0:00:30]} 54. g5 {[%emt 0:00:26]} Bg1 {
[%emt 0:00:24]} 55. Nf6 {[%emt 0:00:04]} Nc5 {[%emt 0:00:01]} 56. Ra8+ {
[%emt 0:00:23]} Ke7 {[%emt 0:00:01]} 57. Ra1 {[%emt 0:00:02]} Bf2 {[%emt 0:00:
09]} 58. Rf1 {[%emt 0:00:03]} 1-0